[Event "*** Titled Tuesday 3|2 Blitz"]
[Site "Chess.com"]
[Date "2017.06.06"]
[Round "5"]
[White "Divertissement"]
[Black "MITerryble"]
[Result "1-0"]
[WhiteElo "2423"]
[BlackElo "2634"]
[TimeControl "180+2"]
[EndTime "14:50:40 PDT"]
[Termination "Divertissement won by resignation"]

1. d4 {[%clk 0:02:28.6]} 1... g6 {[%clk 0:02:59.7]} 2. Nf3 {[%clk 0:02:27.3]}
2... Bg7 {[%clk 0:03:01.6]} 3. c4 {[%clk 0:02:26.4]} 3... d6 {[%clk 0:03:02.9]}
4. g3 {[%clk 0:02:26.9]} 4... Nd7 {[%clk 0:03:03.3]} 5. Bg2 {[%clk 0:02:27]}
5... e5 {[%clk 0:03:04.8]} 6. O-O {[%clk 0:02:27.2]} 6... e4 {[%clk 0:03:05.4]}
7. Ng5 {[%clk 0:02:19.5]} 7... Ngf6 {[%clk 0:03:03.8]} 8. Nc3 {[%clk 0:02:12.1]}
8... O-O {[%clk 0:03:02.4]} 9. Ngxe4 {[%clk 0:02:11.6]} 9... Nxe4 {[%clk
0:03:04.3]} 10. Nxe4 {[%clk 0:02:10.1]} 10... h6 {[%clk 0:03:06.2]} 11. Nc3
{[%clk 0:02:08.7]} 11... f5 {[%clk 0:03:08.1]} 12. e3 {[%clk 0:02:04.5]} 12...
Nf6 {[%clk 0:03:08.9]} 13. Qb3 {[%clk 0:01:46.3]} 13... c6 {[%clk 0:03:09.6]}
14. Qc2 {[%clk 0:01:39.9]} 14... Be6 {[%clk 0:03:06.2]} 15. b3 {[%clk
0:01:38.8]} 15... d5 {[%clk 0:03:07.4]} 16. c5 {[%clk 0:01:24.4]} 16... g5
{[%clk 0:03:06.5]} 17. b4 {[%clk 0:01:23.7]} 17... Ne4 {[%clk 0:03:02.7]} 18. f3
{[%clk 0:01:21.4]} 18... Nf6 {[%clk 0:03:03.8]} 19. Bd2 {[%clk 0:01:14.4]} 19...
Qd7 {[%clk 0:02:57.5]} 20. a4 {[%clk 0:01:13.2]} 20... Nh5 {[%clk 0:02:58]} 21.
f4 {[%clk 0:01:03.5]} 21... Nf6 {[%clk 0:02:58.9]} 22. b5 {[%clk 0:01:00.9]}
22... Ne4 {[%clk 0:03:00]} 23. Nxe4 {[%clk 0:00:59.3]} 23... fxe4 {[%clk
0:02:59.1]} 24. Rab1 {[%clk 0:00:51.8]} 24... gxf4 {[%clk 0:02:59.1]} 25. Rxf4
{[%clk 0:00:49.7]} 25... Rxf4 {[%clk 0:02:59.5]} 26. gxf4 {[%clk 0:00:48.8]}
26... Kh8 {[%clk 0:03:00.4]} 27. Be1 {[%clk 0:00:46.7]} 27... Rg8 {[%clk
0:03:00]} 28. Bg3 {[%clk 0:00:46]} 28... h5 {[%clk 0:03:01.3]} 29. Qf2 {[%clk
0:00:45.4]} 29... Bf6 {[%clk 0:03:01.4]} 30. Kh1 {[%clk 0:00:43.8]} 30... Bh3
{[%clk 0:02:58.3]} 31. Bxh3 {[%clk 0:00:39.6]} 31... Qxh3 {[%clk 0:03:00.2]} 32.
f5 {[%clk 0:00:31.8]} 32... h4 {[%clk 0:02:33.8]} 33. Be5 {[%clk 0:00:29.1]}
33... Bxe5 {[%clk 0:02:15.9]} 34. dxe5 {[%clk 0:00:31]} 34... Rg3 {[%clk
0:02:17.5]} 35. e6 {[%clk 0:00:23.9]} 35... Rf3 {[%clk 0:02:14.4]} 36. e7 {[%clk
0:00:21.3]} 36... Rxf2 {[%clk 0:02:12.9]} 37. e8=Q+ {[%clk 0:00:20.4]} 37... Kh7
{[%clk 0:02:11.5]} 38. Qg6+ {[%clk 0:00:18]} 38... Kh8 {[%clk 0:02:12.5]} 39.
Qh6+ {[%clk 0:00:16.6]} 39... Kg8 {[%clk 0:02:13.8]} 40. Rg1+ {[%clk 0:00:15.8]}
1-0

[Event "*** Titled Tuesday 3|2 Blitz"]
[Site "Chess.com"]
[Date "2017.06.06"]
[Round "5"]
[White "WinnieTPooh"]
[Black "the_drake"]
[Result "0-1"]
[WhiteElo "1922"]
[BlackElo "2136"]
[TimeControl "180+2"]
[EndTime "14:50:51 PDT"]
[Termination "the_drake won by resignation"]

1. e4 {[%clk 0:02:18.7]} 1... e5 {[%clk 0:03:00.1]} 2. Nf3 {[%clk 0:02:19.3]}
2... Nc6 {[%clk 0:03:00.3]} 3. Bb5 {[%clk 0:02:20.1]} 3... a6 {[%clk 0:03:00.4]}
4. Ba4 {[%clk 0:02:20.3]} 4... Nf6 {[%clk 0:03:00.4]} 5. O-O {[%clk 0:02:21]}
5... Nxe4 {[%clk 0:02:59.1]} 6. Re1 {[%clk 0:02:21.4]} 6... Nc5 {[%clk 0:02:57]}
7. Bxc6 {[%clk 0:02:17.3]} 7... dxc6 {[%clk 0:02:56.6]} 8. Rxe5+ {[%clk
0:02:13.7]} 8... Ne6 {[%clk 0:02:55.8]} 9. d4 {[%clk 0:02:10.2]} 9... Bd6 {[%clk
0:02:55.3]} 10. Re4 {[%clk 0:02:07.7]} 10... O-O {[%clk 0:02:54.5]} 11. Qe2
{[%clk 0:02:07.7]} 11... c5 {[%clk 0:02:42.8]} 12. d5 {[%clk 0:02:06.9]} 12...
Nd4 {[%clk 0:02:44]} 13. Nxd4 {[%clk 0:02:04.8]} 13... cxd4 {[%clk 0:02:45.9]}
14. Rxd4 {[%clk 0:02:06]} 14... Bf5 {[%clk 0:02:43.3]} 15. c4 {[%clk 0:02:03.7]}
15... Qf6 {[%clk 0:02:42.6]} 16. Be3 {[%clk 0:01:48]} 16... Be5 {[%clk
0:02:36.5]} 17. Rd2 {[%clk 0:01:45.1]} 17... Rae8 {[%clk 0:02:33.3]} 18. a4
{[%clk 0:00:57.7]} 18... Qd6 {[%clk 0:02:18.2]} 19. h3 {[%clk 0:00:46.8]} 19...
Qb4 {[%clk 0:02:09.6]} 20. Na3 {[%clk 0:00:18.7]} 20... Qxa4 {[%clk 0:02:03.6]}
21. Nc2 {[%clk 0:00:19.7]} 21... Qb3 {[%clk 0:01:55]} 22. Nd4 {[%clk 0:00:20.8]}
22... Bxd4 {[%clk 0:01:53.1]} 23. Rxd4 {[%clk 0:00:22.7]} 23... Bg6 {[%clk
0:01:48.9]} 24. Ra3 {[%clk 0:00:23.4]} 24... Qc2 {[%clk 0:01:48.1]} 25. Qxc2
{[%clk 0:00:23.2]} 25... Bxc2 {[%clk 0:01:50]} 26. Rc3 {[%clk 0:00:24]} 26...
Bg6 {[%clk 0:01:48.8]} 27. Rd2 {[%clk 0:00:23.1]} 27... Re4 {[%clk 0:01:47.4]}
28. c5 {[%clk 0:00:17.9]} 28... Rd8 {[%clk 0:01:46.6]} 29. f3 {[%clk 0:00:14.6]}
29... Rb4 {[%clk 0:01:47.4]} 30. Kf2 {[%clk 0:00:14.6]} 30... f6 {[%clk
0:01:43.5]} 31. Bf4 {[%clk 0:00:14.2]} 31... Rxf4 {[%clk 0:01:29.6]} 0-1

[Event "*** Titled Tuesday 3|2 Blitz"]
[Site "Chess.com"]
[Date "2017.06.06"]
[Round "5"]
[White "metalbattler"]
[Black "DiamondCrusher22"]
[Result "0-1"]
[WhiteElo "2024"]
[BlackElo "2021"]
[TimeControl "180+2"]
[EndTime "14:51:01 PDT"]
[Termination "DiamondCrusher22 won by checkmate"]

1. e4 {[%clk 0:03:02]} 1... e5 {[%clk 0:03:00.3]} 2. Nf3 {[%clk 0:03:02.3]} 2...
Nc6 {[%clk 0:03:01.1]} 3. d4 {[%clk 0:03:03.2]} 3... exd4 {[%clk 0:03:00.4]} 4.
Bc4 {[%clk 0:03:03.6]} 4... Nf6 {[%clk 0:02:58.7]} 5. e5 {[%clk 0:03:04]} 5...
d5 {[%clk 0:02:58.8]} 6. Bb5 {[%clk 0:03:05]} 6... Ne4 {[%clk 0:02:57.9]} 7.
Nxd4 {[%clk 0:03:06.3]} 7... Bd7 {[%clk 0:02:58.5]} 8. Bxc6 {[%clk 0:03:07.4]}
8... bxc6 {[%clk 0:02:59.5]} 9. O-O {[%clk 0:03:08.8]} 9... Bc5 {[%clk
0:02:58.8]} 10. f3 {[%clk 0:03:09.4]} 10... Ng5 {[%clk 0:02:57.7]} 11. f4 {[%clk
0:03:10.9]} 11... Ne4 {[%clk 0:02:57.1]} 12. Be3 {[%clk 0:03:12.4]} 12... O-O
{[%clk 0:02:57.1]} 13. Nd2 {[%clk 0:03:12.9]} 13... Bg4 {[%clk 0:01:57.9]} 14.
Qxg4 {[%clk 0:02:44.2]} 14... Nxd2 {[%clk 0:01:49.3]} 15. Bxd2 {[%clk 0:02:45]}
15... Bxd4+ {[%clk 0:01:49.8]} 16. Kh1 {[%clk 0:02:46.4]} 16... Bxb2 {[%clk
0:01:46.1]} 17. Rab1 {[%clk 0:02:45.2]} 17... Rb8 {[%clk 0:01:43.2]} 18. c3
{[%clk 0:02:45.1]} 18... d4 {[%clk 0:01:37.9]} 19. f5 {[%clk 0:02:39.5]} 19...
f6 {[%clk 0:01:15.9]} 20. Bh6 {[%clk 0:02:20.5]} 20... Qe7 {[%clk 0:01:05.9]}
21. cxd4 {[%clk 0:02:16.8]} 21... fxe5 {[%clk 0:01:02.4]} 22. f6 {[%clk
0:01:57.6]} 22... Rxf6 {[%clk 0:00:56.6]} 23. Bg5 {[%clk 0:01:53]} 23... Rxf1+
{[%clk 0:00:49.3]} 24. Rxf1 {[%clk 0:01:54.9]} 24... Rf8 {[%clk 0:00:33.1]} 25.
Rb1 {[%clk 0:01:10.9]} 25... Qf7 {[%clk 0:00:31.6]} 26. h4 {[%clk 0:01:06.3]}
26... Bxd4 {[%clk 0:00:30.5]} 27. Rb7 {[%clk 0:00:48.2]} 27... c5 {[%clk
0:00:26.7]} 28. h5 {[%clk 0:00:43.4]} 28... Qf1+ {[%clk 0:00:26.3]} 29. Kh2
{[%clk 0:00:43.5]} 29... Qg1+ {[%clk 0:00:24]} 30. Kh3 {[%clk 0:00:43.8]} 30...
Qh1+ {[%clk 0:00:23.9]} 31. Kg3 {[%clk 0:00:44.8]} 31... Bf2# {[%clk 0:00:24.6]}
0-1

[Event "*** Titled Tuesday 3|2 Blitz"]
[Site "Chess.com"]
[Date "2017.06.06"]
[Round "5"]
[White "gmcorrales"]
[Black "Aikiigm"]
[Result "1-0"]
[WhiteElo "2539"]
[BlackElo "2420"]
[TimeControl "180+2"]
[EndTime "14:51:06 PDT"]
[Termination "gmcorrales won by resignation"]

1. e4 {[%clk 0:03:02]} 1... Nf6 {[%clk 0:03:00.8]} 2. e5 {[%clk 0:03:02.4]} 2...
Nd5 {[%clk 0:03:01.9]} 3. d4 {[%clk 0:03:03.7]} 3... Nb6 {[%clk 0:03:03]} 4. Nf3
{[%clk 0:03:05.2]} 4... d6 {[%clk 0:03:04]} 5. a4 {[%clk 0:03:04.5]} 5... a5
{[%clk 0:03:04.2]} 6. c4 {[%clk 0:03:01.6]} 6... Bg4 {[%clk 0:03:03]} 7. exd6
{[%clk 0:03:02.4]} 7... exd6 {[%clk 0:03:03.1]} 8. h3 {[%clk 0:03:03.1]} 8...
Bh5 {[%clk 0:03:03.8]} 9. Nc3 {[%clk 0:03:01.8]} 9... Nc6 {[%clk 0:03:04.2]} 10.
g4 {[%clk 0:02:59.6]} 10... Bg6 {[%clk 0:03:04.7]} 11. Bd3 {[%clk 0:02:49.1]}
11... Bxd3 {[%clk 0:03:00.7]} 12. Qxd3 {[%clk 0:02:49.7]} 12... Nb4 {[%clk
0:03:02.3]} 13. Qe2+ {[%clk 0:02:49.9]} 13... Qe7 {[%clk 0:03:03.6]} 14. Be3
{[%clk 0:02:50.2]} 14... h5 {[%clk 0:02:50]} 15. g5 {[%clk 0:02:50.1]} 15...
O-O-O {[%clk 0:02:44.7]} 16. d5 {[%clk 0:02:40.6]} 16... g6 {[%clk 0:02:18]} 17.
O-O {[%clk 0:02:30.4]} 17... Qd7 {[%clk 0:02:12]} 18. Kg2 {[%clk 0:02:16.4]}
18... Re8 {[%clk 0:02:10.8]} 19. Nb5 {[%clk 0:02:16.4]} 19... Bg7 {[%clk
0:02:10]} 20. Rfe1 {[%clk 0:02:10.2]} 20... Qf5 {[%clk 0:02:05.8]} 21. Rac1
{[%clk 0:02:08.7]} 21... Nd3 {[%clk 0:01:54.9]} 22. b3 {[%clk 0:01:31]} 22...
Nxc1 {[%clk 0:01:52.3]} 23. Rxc1 {[%clk 0:01:30.9]} 23... Be5 {[%clk 0:01:39.9]}
24. Qd2 {[%clk 0:01:31.5]} 24... Kd7 {[%clk 0:01:25.7]} 25. Nxc7 {[%clk
0:01:28]} 25... Na8 {[%clk 0:01:13.8]} 26. Nb5 {[%clk 0:01:20.2]} 26... b6
{[%clk 0:01:14.3]} 27. b4 {[%clk 0:01:18.1]} 27... axb4 {[%clk 0:01:13.6]} 28.
Qxb4 {[%clk 0:01:20]} 28... Rd8 {[%clk 0:00:59.3]} 29. Re1 {[%clk 0:01:03.4]}
29... Rhe8 {[%clk 0:00:50.7]} 30. a5 {[%clk 0:01:04.3]} 30... bxa5 {[%clk
0:00:47.7]} 31. Qxa5 {[%clk 0:01:06.2]} 31... Re7 {[%clk 0:00:47.7]} 32. Qa4
{[%clk 0:00:53.8]} 32... Ree8 {[%clk 0:00:21.2]} 33. Nbd4+ {[%clk 0:00:53.2]}
1-0

[Event "*** Titled Tuesday 3|2 Blitz"]
[Site "Chess.com"]
[Date "2017.06.06"]
[Round "5"]
[White "yian123"]
[Black "jcibarra"]
[Result "0-1"]
[WhiteElo "2399"]
[BlackElo "2637"]
[TimeControl "180+2"]
[EndTime "14:51:11 PDT"]
[Termination "jcibarra won by resignation"]

1. e4 {[%clk 0:03:02]} 1... c5 {[%clk 0:03:01]} 2. Nf3 {[%clk 0:03:01.4]} 2...
Nf6 {[%clk 0:03:02.3]} 3. Nc3 {[%clk 0:03:00.7]} 3... d5 {[%clk 0:03:03]} 4. e5
{[%clk 0:02:53.7]} 4... Nfd7 {[%clk 0:03:02.1]} 5. Nxd5 {[%clk 0:02:40.9]} 5...
Nxe5 {[%clk 0:03:02.8]} 6. Bb5+ {[%clk 0:02:42.3]} 6... Nbc6 {[%clk 0:02:59.7]}
7. Ne3 {[%clk 0:02:06.9]} 7... a6 {[%clk 0:02:57.8]} 8. Nxe5 {[%clk 0:02:05.5]}
8... axb5 {[%clk 0:02:58.5]} 9. Nxc6 {[%clk 0:02:06.4]} 9... bxc6 {[%clk
0:02:59.5]} 10. b3 {[%clk 0:02:05.6]} 10... e5 {[%clk 0:02:53.9]} 11. Bb2 {[%clk
0:02:05.7]} 11... f6 {[%clk 0:02:54]} 12. O-O {[%clk 0:01:59.9]} 12... Be7
{[%clk 0:02:47.7]} 13. Qh5+ {[%clk 0:01:55.6]} 13... g6 {[%clk 0:02:46.7]} 14.
Qe2 {[%clk 0:01:57.1]} 14... O-O {[%clk 0:02:41.1]} 15. f4 {[%clk 0:01:58]}
15... exf4 {[%clk 0:02:38.2]} 16. Rxf4 {[%clk 0:01:58.9]} 16... f5 {[%clk
0:02:37]} 17. a4 {[%clk 0:01:59.3]} 17... Qd6 {[%clk 0:02:15.1]} 18. Rff1 {[%clk
0:01:37.6]} 18... Bd7 {[%clk 0:01:53.4]} 19. Rfe1 {[%clk 0:01:27]} 19... Bf6
{[%clk 0:01:47.1]} 20. Bxf6 {[%clk 0:01:21.5]} 20... Qxf6 {[%clk 0:01:49]} 21.
Qd3 {[%clk 0:01:15.9]} 21... Rf7 {[%clk 0:01:35.7]} 22. Rab1 {[%clk 0:01:10.8]}
22... f4 {[%clk 0:01:20.2]} 23. Rf1 {[%clk 0:00:59.8]} 23... Qg5 {[%clk
0:01:12.5]} 24. axb5 {[%clk 0:00:49.3]} 24... Bh3 {[%clk 0:00:58.4]} 25. Kh1
{[%clk 0:00:36.3]} 25... Rd8 {[%clk 0:00:59]} 26. Qe2 {[%clk 0:00:27.9]} 26...
fxe3 {[%clk 0:00:55.2]} 27. gxh3 {[%clk 0:00:20.9]} 27... Rxd2 {[%clk
0:00:52.7]} 28. Qg4 {[%clk 0:00:21.7]} 28... Qxg4 {[%clk 0:00:40.6]} 29. hxg4
{[%clk 0:00:23.6]} 29... Rxf1+ {[%clk 0:00:40.3]} 30. Rxf1 {[%clk 0:00:25.5]}
30... e2 {[%clk 0:00:41.6]} 0-1

[Event "*** Titled Tuesday 3|2 Blitz"]
[Site "Chess.com"]
[Date "2017.06.06"]
[Round "5"]
[White "Storne89"]
[Black "chessking2151"]
[Result "1-0"]
[WhiteElo "2514"]
[BlackElo "2340"]
[TimeControl "180+2"]
[EndTime "14:51:20 PDT"]
[Termination "Storne89 won by resignation"]

1. e4 {[%clk 0:02:56.5]} 1... e5 {[%clk 0:02:58.1]} 2. Nf3 {[%clk 0:02:56.6]}
2... Nc6 {[%clk 0:02:57.4]} 3. Bc4 {[%clk 0:02:57.1]} 3... Nf6 {[%clk
0:02:55.7]} 4. d3 {[%clk 0:02:58]} 4... Be7 {[%clk 0:02:54.6]} 5. O-O {[%clk
0:02:57.3]} 5... O-O {[%clk 0:02:50.8]} 6. a4 {[%clk 0:02:57.8]} 6... d6 {[%clk
0:02:48.6]} 7. a5 {[%clk 0:02:58.3]} 7... a6 {[%clk 0:02:32.2]} 8. c3 {[%clk
0:02:59.3]} 8... h6 {[%clk 0:02:16.6]} 9. h3 {[%clk 0:02:58.8]} 9... Nh7 {[%clk
0:02:13.7]} 10. Nbd2 {[%clk 0:02:57.2]} 10... Kh8 {[%clk 0:02:12.5]} 11. d4
{[%clk 0:02:58.5]} 11... f5 {[%clk 0:02:03]} 12. dxe5 {[%clk 0:02:48.9]} 12...
dxe5 {[%clk 0:01:49.6]} 13. exf5 {[%clk 0:02:49.7]} 13... Bxf5 {[%clk
0:01:49.8]} 14. Qe2 {[%clk 0:02:37.2]} 14... Bf6 {[%clk 0:01:46]} 15. Ne4 {[%clk
0:02:36.1]} 15... Qe7 {[%clk 0:01:40.8]} 16. b3 {[%clk 0:02:29.7]} 16... Rfe8
{[%clk 0:01:34.3]} 17. Re1 {[%clk 0:02:30.1]} 17... Rad8 {[%clk 0:01:30.4]} 18.
Ba3 {[%clk 0:02:26.5]} 18... Qd7 {[%clk 0:01:31]} 19. Bc5 {[%clk 0:02:20.9]}
19... Be6 {[%clk 0:01:20]} 20. b4 {[%clk 0:02:03.7]} 20... Bxc4 {[%clk
0:01:18.3]} 21. Qxc4 {[%clk 0:02:05.6]} 21... Qd5 {[%clk 0:01:13.3]} 22. Qe2
{[%clk 0:02:05]} 22... Ng5 {[%clk 0:01:00.3]} 23. Nfxg5 {[%clk 0:02:02.4]} 23...
Bxg5 {[%clk 0:00:51.8]} 24. Nxg5 {[%clk 0:02:01]} 24... hxg5 {[%clk 0:00:51.5]}
25. Qh5+ {[%clk 0:02:02.6]} 25... Kg8 {[%clk 0:00:52.7]} 26. Qxg5 {[%clk
0:02:02.7]} 26... e4 {[%clk 0:00:41.2]} 27. Qh4 {[%clk 0:01:53.1]} 27... Qf5
{[%clk 0:00:29.9]} 28. Re2 {[%clk 0:01:50.4]} 28... Rd5 {[%clk 0:00:20.4]} 29.
Rae1 {[%clk 0:01:50.2]} 29... Rde5 {[%clk 0:00:21.6]} 30. Re3 {[%clk 0:01:51.2]}
30... Kf7 {[%clk 0:00:21]} 31. Rg3 {[%clk 0:01:49.9]} 31... Kg8 {[%clk
0:00:21.8]} 32. Rg4 {[%clk 0:01:48.8]} 32... R5e6 {[%clk 0:00:19.3]} 33. Qg3
{[%clk 0:01:49.6]} 33... Qf7 {[%clk 0:00:17.3]} 34. h4 {[%clk 0:01:49.5]} 34...
Kh7 {[%clk 0:00:12.4]} 35. h5 {[%clk 0:01:48.7]} 35... Kh8 {[%clk 0:00:11.9]}
36. Rg6 {[%clk 0:01:49.1]} 36... Rf6 {[%clk 0:00:10.9]} 37. Qg4 {[%clk
0:01:42.8]} 37... Re5 {[%clk 0:00:10.2]} 38. Re3 {[%clk 0:01:38.1]} 38... Rxg6
{[%clk 0:00:07.9]} 39. hxg6 {[%clk 0:01:37.7]} 39... Qf5 {[%clk 0:00:07.3]} 40.
Qh4+ {[%clk 0:01:32.9]} 40... Qh5 {[%clk 0:00:06.6]} 41. Qxh5+ {[%clk
0:01:33.8]} 41... Rxh5 {[%clk 0:00:07.2]} 42. Rxe4 {[%clk 0:01:35.4]} 1-0

[Event "*** Titled Tuesday 3|2 Blitz"]
[Site "Chess.com"]
[Date "2017.06.06"]
[Round "5"]
[White "NTBT_DHS"]
[Black "1stSecond"]
[Result "0-1"]
[WhiteElo "2430"]
[BlackElo "2509"]
[TimeControl "180+2"]
[EndTime "14:51:34 PDT"]
[Termination "1stSecond won by resignation"]

1. d4 {[%clk 0:03:02]} 1... Nf6 {[%clk 0:03:00.7]} 2. c4 {[%clk 0:03:03.5]} 2...
e6 {[%clk 0:02:59.2]} 3. Nf3 {[%clk 0:03:04.6]} 3... b6 {[%clk 0:03:00.2]} 4. g3
{[%clk 0:03:05.7]} 4... Ba6 {[%clk 0:03:01.5]} 5. Qa4 {[%clk 0:03:06.3]} 5... c5
{[%clk 0:03:00.3]} 6. Bg2 {[%clk 0:03:06.8]} 6... Bb7 {[%clk 0:03:00.9]} 7. O-O
{[%clk 0:03:07.9]} 7... cxd4 {[%clk 0:03:01.1]} 8. Nxd4 {[%clk 0:03:09.8]} 8...
Bxg2 {[%clk 0:03:02.2]} 9. Kxg2 {[%clk 0:03:11.7]} 9... Qc8 {[%clk 0:03:03.5]}
10. Nc3 {[%clk 0:03:07.4]} 10... Qb7+ {[%clk 0:03:01.6]} 11. f3 {[%clk
0:03:05.8]} 11... Na6 {[%clk 0:02:50.6]} 12. Bg5 {[%clk 0:02:49.1]} 12... Be7
{[%clk 0:02:47.4]} 13. Rfd1 {[%clk 0:02:45.6]} 13... O-O {[%clk 0:02:18.9]} 14.
e4 {[%clk 0:02:40.6]} 14... Nc5 {[%clk 0:02:14.2]} 15. Qc2 {[%clk 0:02:39.4]}
15... h6 {[%clk 0:02:14.8]} 16. Be3 {[%clk 0:02:30.7]} 16... d6 {[%clk
0:02:09.1]} 17. b4 {[%clk 0:02:26.8]} 17... Ncd7 {[%clk 0:02:08.2]} 18. Ndb5
{[%clk 0:02:27.1]} 18... Ne5 {[%clk 0:02:07.2]} 19. Qe2 {[%clk 0:01:25.1]} 19...
Rac8 {[%clk 0:02:05.9]} 20. c5 {[%clk 0:01:26.4]} 20... dxc5 {[%clk 0:02:03.1]}
21. bxc5 {[%clk 0:01:25.1]} 21... Bxc5 {[%clk 0:02:03.9]} 22. Bxc5 {[%clk
0:01:19.8]} 22... Rxc5 {[%clk 0:02:05.8]} 23. f4 {[%clk 0:01:11]} 23... Nc4
{[%clk 0:02:03.8]} 24. Rd4 {[%clk 0:01:10.3]} 24... a6 {[%clk 0:02:01.2]} 25.
Rxc4 {[%clk 0:01:07.6]} 25... axb5 {[%clk 0:01:54.6]} 26. Rxc5 {[%clk
0:01:07.9]} 26... bxc5 {[%clk 0:01:55.2]} 27. Qxb5 {[%clk 0:01:09.1]} 27... Qa8
{[%clk 0:01:52]} 28. Re1 {[%clk 0:00:50.3]} 28... Rb8 {[%clk 0:01:51.3]} 29.
Qxc5 {[%clk 0:00:50]} 29... Rb2+ {[%clk 0:01:44.6]} 30. Kg1 {[%clk 0:00:45.3]}
30... Ng4 {[%clk 0:01:40.2]} 31. h3 {[%clk 0:00:38.8]} 31... Nf2 {[%clk
0:01:35.8]} 32. Re2 {[%clk 0:00:38.1]} 32... Rxe2 {[%clk 0:01:16.9]} 33. Nxe2
{[%clk 0:00:40]} 33... Nxe4 {[%clk 0:01:18.4]} 34. Qc2 {[%clk 0:00:38.1]} 34...
Qa7+ {[%clk 0:01:08.6]} 35. Kh1 {[%clk 0:00:39.5]} 35... Qe3 {[%clk 0:01:06.8]}
36. a4 {[%clk 0:00:21.5]} 36... Qf3+ {[%clk 0:00:48.3]} 37. Kg1 {[%clk
0:00:21.8]} 37... Qf2+ {[%clk 0:00:49.3]} 38. Kh1 {[%clk 0:00:21.9]} 38... Nxg3+
{[%clk 0:00:50.8]} 0-1

[Event "*** Titled Tuesday 3|2 Blitz"]
[Site "Chess.com"]
[Date "2017.06.06"]
[Round "5"]
[White "nurmiTV"]
[Black "Noukii"]
[Result "0-1"]
[WhiteElo "2465"]
[BlackElo "2625"]
[TimeControl "180+2"]
[EndTime "14:51:37 PDT"]
[Termination "Noukii won by resignation"]

1. c4 {[%clk 0:02:52.7]} 1... e5 {[%clk 0:02:57.5]} 2. g3 {[%clk 0:02:53.3]}
2... Nf6 {[%clk 0:02:57.8]} 3. Bg2 {[%clk 0:02:54.3]} 3... h6 {[%clk 0:02:59.3]}
4. Nc3 {[%clk 0:02:55.1]} 4... Bb4 {[%clk 0:03:00.2]} 5. Nd5 {[%clk 0:02:55.1]}
5... Nxd5 {[%clk 0:03:01.4]} 6. cxd5 {[%clk 0:02:55.3]} 6... O-O {[%clk
0:03:02.9]} 7. Nf3 {[%clk 0:02:54.1]} 7... d6 {[%clk 0:03:04]} 8. O-O {[%clk
0:02:54.6]} 8... Nd7 {[%clk 0:03:02.8]} 9. d4 {[%clk 0:02:45]} 9... e4 {[%clk
0:02:58.2]} 10. Nd2 {[%clk 0:02:42.2]} 10... f5 {[%clk 0:02:59.5]} 11. Nc4
{[%clk 0:02:32.6]} 11... b5 {[%clk 0:02:57.7]} 12. Ne3 {[%clk 0:02:16.2]} 12...
Ba5 {[%clk 0:02:54.2]} 13. f3 {[%clk 0:01:50.6]} 13... Nf6 {[%clk 0:02:54.3]}
14. Qb3 {[%clk 0:01:47]} 14... Bb6 {[%clk 0:02:49.8]} 15. Qxb5 {[%clk
0:01:41.9]} 15... Bxd4 {[%clk 0:02:48.7]} 16. Kh1 {[%clk 0:01:39.2]} 16... Qe7
{[%clk 0:02:28.3]} 17. Nc2 {[%clk 0:01:36.1]} 17... Bb6 {[%clk 0:02:28.7]} 18.
Qc4 {[%clk 0:01:36.3]} 18... a5 {[%clk 0:02:28]} 19. Re1 {[%clk 0:01:23.3]}
19... Ba6 {[%clk 0:02:21.7]} 20. Qc3 {[%clk 0:01:21.8]} 20... Nxd5 {[%clk
0:01:52.5]} 21. Qb3 {[%clk 0:01:19.7]} 21... c6 {[%clk 0:01:52.8]} 22. fxe4
{[%clk 0:01:08.6]} 22... fxe4 {[%clk 0:01:49]} 23. Be3 {[%clk 0:01:07]} 23...
Rab8 {[%clk 0:01:40.8]} 24. Bxb6 {[%clk 0:01:00.7]} 24... Rxb6 {[%clk
0:01:41.4]} 25. Qa3 {[%clk 0:01:02.6]} 25... Rf2 {[%clk 0:01:36.5]} 26. Nd4
{[%clk 0:00:58.6]} 26... Qe5 {[%clk 0:01:26.8]} 27. Rad1 {[%clk 0:00:52.1]}
27... c5 {[%clk 0:01:26.4]} 28. Nb3 {[%clk 0:00:42.8]} 28... Ne3 {[%clk
0:01:22.1]} 29. Rg1 {[%clk 0:00:20.7]} 29... Nxd1 {[%clk 0:01:15.3]} 30. Qxa5
{[%clk 0:00:18.1]} 30... Bxe2 {[%clk 0:00:45.4]} 31. Qxb6 {[%clk 0:00:18.9]}
31... Ne3 {[%clk 0:00:46.3]} 32. Nd2 {[%clk 0:00:15.3]} 32... Bf3 {[%clk
0:00:37.1]} 33. Qb3+ {[%clk 0:00:15.6]} 33... Nd5 {[%clk 0:00:33.6]} 34. Qe3
{[%clk 0:00:17.1]} 34... Nxe3 {[%clk 0:00:26.8]} 0-1

[Event "*** Titled Tuesday 3|2 Blitz"]
[Site "Chess.com"]
[Date "2017.06.06"]
[Round "5"]
[White "Journey_to_GrandMaster_YT"]
[Black "AndreyOstrovskiy"]
[Result "0-1"]
[WhiteElo "2334"]
[BlackElo "2533"]
[TimeControl "180+2"]
[EndTime "14:51:37 PDT"]
[Termination "AndreyOstrovskiy won by resignation"]

1. d4 {[%clk 0:03:02]} 1... Nf6 {[%clk 0:03:00.4]} 2. Nf3 {[%clk 0:03:03]} 2...
e6 {[%clk 0:03:01.4]} 3. e3 {[%clk 0:03:03.9]} 3... b6 {[%clk 0:03:00.4]} 4. Bd3
{[%clk 0:03:04.9]} 4... Bb7 {[%clk 0:03:01.6]} 5. Nbd2 {[%clk 0:03:06.4]} 5...
d5 {[%clk 0:03:01.6]} 6. b3 {[%clk 0:03:05.5]} 6... Bd6 {[%clk 0:03:02.3]} 7.
Bb2 {[%clk 0:03:06.1]} 7... c5 {[%clk 0:03:03.4]} 8. Ne5 {[%clk 0:03:03.4]} 8...
Nc6 {[%clk 0:02:59.5]} 9. O-O {[%clk 0:03:02]} 9... Qc7 {[%clk 0:02:57.5]} 10.
Ndf3 {[%clk 0:02:58.1]} 10... O-O {[%clk 0:02:49.9]} 11. Nxc6 {[%clk 0:02:53.4]}
11... Bxc6 {[%clk 0:02:46.7]} 12. dxc5 {[%clk 0:02:54.1]} 12... bxc5 {[%clk
0:02:45.2]} 13. Bxf6 {[%clk 0:02:53.5]} 13... gxf6 {[%clk 0:02:46.4]} 14. c4
{[%clk 0:02:42.1]} 14... f5 {[%clk 0:02:43.5]} 15. Ng5 {[%clk 0:02:20.8]} 15...
h6 {[%clk 0:01:57]} 16. Qh5 {[%clk 0:01:34.1]} 16... Kg7 {[%clk 0:01:55]} 17.
cxd5 {[%clk 0:01:20.7]} 17... Bxd5 {[%clk 0:01:48]} 18. e4 {[%clk 0:01:22]}
18... Bf4 {[%clk 0:00:58.8]} 19. exd5 {[%clk 0:01:03.7]} 19... hxg5 {[%clk
0:00:59]} 20. dxe6 {[%clk 0:01:00.5]} 20... fxe6 {[%clk 0:00:59.6]} 21. g3
{[%clk 0:00:57.4]} 21... Rh8 {[%clk 0:00:58.3]} 22. Qe2 {[%clk 0:00:57.5]} 22...
Be5 {[%clk 0:00:49.2]} 23. Rae1 {[%clk 0:00:57.6]} 23... Kf6 {[%clk 0:00:47.3]}
24. Bc4 {[%clk 0:00:38.6]} 24... g4 {[%clk 0:00:45.2]} 25. f4 {[%clk 0:00:30.1]}
25... Bd4+ {[%clk 0:00:43.8]} 26. Kh1 {[%clk 0:00:22.7]} 26... Qc6+ {[%clk
0:00:41.8]} 27. Qg2 {[%clk 0:00:23.7]} 27... Rxh2+ {[%clk 0:00:41.3]} 28. Kxh2
{[%clk 0:00:14.8]} 28... Rh8+ {[%clk 0:00:41.7]} 0-1